[Event "2nd Bieszczady Chess-ch A 2022"]
[Site "Bystre"]
[Date "2022.07.18"]
[Round "1.1"]
[White "Kucharski, Bartlomiej"]
[Black "Razin, Vadim"]
[Result "0-1"]
[ECO "A06"]
[WhiteElo "2003"]
[BlackElo "2428"]
[Annotator "TA"]
[PlyCount "108"]
[EventDate "2022.07.17"]
[EventCountry "POL"]
[SourceTitle "playchess.com"]
[Source "ChessBase"]
[SourceQuality "1"]
[TimeControl "5400+30"]

{[%evp 12,108,11,8,11,-13,-15,-14,-22,-16,-21,-15,-22,-34,-39,-31,-23,-88,-56,-154,-119,-145,-162,-153,-155,-171,-157,-174,-104,-179,-172,-161,-162,-153,-156,-161,-165,-179,-177,-178,-179,-182,-176,-198,-202,-198,-191,-225,-206,-242,-236,-329,-214,-360,-227,-360,-304,-291,-277,-267,-259,-429,-384,-549,-564,-626,-618,-803,-792,-740,-685,-621,-591,-929,-903,-763,-890,-713,-847,-806,-785,-714,-637,-1515,-1341,-2244,-1710,-1701,-1576,-5762,-5648,-5289,-5286,-29965,-29944,-6709,-6187,-5185,-2689]} 1. Nf3 {[%emt 0:00:03]} d5 {[%emt 0:00:07]} 2. g3 {[%emt 0:00:08]} Nf6 {[%emt 0:00:08]} 3. Bg2 {[%emt 0:00:09]} c6 {[%emt 0:00:14]} 4. d3 {[%emt 0:01:49]} Bf5 {[%emt 0:00:17]} 5. Nbd2 {[%emt 0:00:27]} e6 {[%emt 0:00:22]} 6. O-O {[%emt 0:01:42]} Nbd7 {[%emt 0:00:30]} 7. Re1 {[%emt 0:02:47]} Bc5 {[%emt 0:01:20][%cal Oc5f2,Bf8c5,Bc5b6,Bb6a5][%mdl 32] [#] ...Bxf2+! is the strong threat. A07: Réti Opening: New York and Capablanca Systems.} 8. d4 {[%emt 0:06:42]} Bb6 {[%emt 0:01:30][%cal Oe6e5] [#]} 9. h3 $146 {[%emt 0:07:52]} ({Predecessor:} 9. c4 h6 10. b3 O-O 11. Bb2 Ne4 12. Nxe4 Bxe4 13. Nd2 Bxg2 14. Kxg2 f5 15. c5 {½-½ (47) Correa,L (1904)-Meneses,L (1966) Teresina 2018}) 9... O-O {[%emt 0:01:25] The position is equal.} 10. b3 {[%emt 0:00:40]} Ba5 {[%emt 0:04:01]} 11. Bb2 {[%emt 0:21:43] Inhibits Bc3.} Ne4 {[%emt 0:00:12]} 12. Qc1 {[%emt 0:02:50]} c5 {[%emt 0:04:24]} 13. c3 {[%emt 0:02:58]} Rc8 {[%emt 0:04:06]} 14. dxc5 {[%emt 0:05:39]} (14. Rd1 $11) 14... Ndxc5 $17 {[%emt 0:00:08]} (14... Rxc5 $6 15. Nxe4 Bxe4 16. Rd1 $11) 15. Nd4 {[%emt 0:04:06]} (15. Nh4 $15) 15... Bg6 {[%emt 0:02:56]} 16. Rd1 {[%emt 0:04:15]} e5 $36 {[%emt 0:08:33][%mdl 2048] White is under strong pressure. Black is more active.} 17. Nxe4 {[%emt 0:06:57]} Nxe4 {[%emt 0:00:10]} ({Weaker is} 17... Bxe4 18. Nf3 $15) 18. Bxe4 {[%emt 0:02:12]} Bxe4 {[%emt 0:00:05]} 19. Nf3 {[%emt 0:01:11]} Qf6 {[%emt 0:04:09]} (19... Qd7 $19 20. g4 Bxf3 21. exf3 f5) 20. Qg5 {[%emt 0:05:35]} (20. c4 $17) 20... Bxc3 $19 {[%emt 0:00:25]} 21. Bxc3 {[%emt 0:03:22]} Rxc3 {[%emt 0:00:11]} ({Not} 21... Qxg5 22. Nxg5 Rxc3 23. Nxe4 dxe4 24. Rd7 $11) 22. Qxf6 {[%emt 0:02:35]} gxf6 {[%emt 0:00:02]} 23. Ne1 {[%emt 0:00:09] [#]} d4 $1 {[%emt 0:00:17]} 24. Rd2 {[%emt 0:01:46]} Rfc8 {[%emt 0:00:13]} 25. f3 {[%emt 0:00:12]} Bg6 {[%emt 0:00:14]} 26. Kf2 {[%emt 0:01:00]} b5 {[%emt 0:00:19]} 27. Nd3 {[%emt 0:04:11]} a5 {[%emt 0:02:23]} 28. Rad1 {[%emt 0:02:40]} Rc2 {[%emt 0:03:35]} 29. Ke1 {[%emt 0:02:36]} Bf5 {[%emt 0:02:49]} 30. h4 {[%emt 0:02:29]} Kg7 {[%emt 0:00:39]} 31. Kf2 {[%emt 0:02:30]} h5 {[%emt 0:02:04]} 32. Ke1 {[%emt 0:00:09]} (32. Ne1 $142 R2c3 33. Nd3) 32... Kg6 {[%emt 0:01:39]} 33. Kf2 {[%emt 0:01:42]} (33. Nb2 $142) 33... Bxd3 {[%emt 0:07:19]} 34. exd3 {[%emt 0:00:10][%mdl 4096] Endgame KRR-KRR} Kf5 {[%emt 0:00:11]} 35. Ke2 {[%emt 0:00:35]} Ke6 {[%emt 0:00:28]} 36. Rg1 $2 {[%emt 0:01:49]} (36. g4) 36... Rc1 {[%emt 0:00:32]} 37. Rgd1 {[%emt 0:00:41]} (37. Rxc1 $142 Rxc1 38. Rd1 Rc2+ 39. Rd2) 37... f5 {[%emt 0:00:20]} 38. Ke1 {[%emt 0:00:27]} Kd5 {[%emt 0:00:50]} 39. Rg2 {[%emt 0:00:34]} R8c3 {[%emt 0:00:25] aiming for ...Rxd1+.} 40. Rgd2 {[%emt 0:00:00]} f6 {[%emt 0:00:00]} 41. Rxc1 {[%emt 0:00:00]} Rxc1+ {[%emt 0:00:00] KR-KR} 42. Kf2 {[%emt 0:00:00]} e4 {[%emt 0:00:00]} 43. dxe4+ {[%emt 0:00:00]} fxe4 {[%emt 0:00:00]} 44. fxe4+ {[%emt 0:00:00]} Kxe4 {[%emt 0:00:00] ( -> ...d3)} 45. Re2+ {[%emt 0:00:00]} Kd3 {White must now prevent ...Rc2.} 46. Re6 {[%emt 0:00:21]} Rc5 {[%emt 0:00:00]} 47. Rxf6 {[%emt 0:02:00]} Kc2 {[%emt 0:00:00] Threatens to win with ...d3.} ({Wrong is} 47... Rc2+ $2 48. Kf3 $19) 48. Rd6 {[%emt 0:00:32]} d3 {[%emt 0:00:00] And now ...d2 would win.} 49. Ke3 {[%emt 0:00:19] Against d2} Re5+ {[%emt 0:00:00]} 50. Kd4 {[%emt 0:01:32]} Re8 {[%emt 0:00:00] Strongly threatening ...d2.} 51. Rc6+ {[%emt 0:00:20]} Kd2 {[%emt 0:00:00]} 52. g4 {[%emt 0:01:12]} hxg4 {[%emt 0:00:00]} 53. h5 {[%emt 0:00:11]} Rd8+ {[%emt 0:00:00]} 54. Ke4 {[%emt 0:00:06]} Ke2 {[%emt 0:00:00] Weighted Error Value: White=0.85/Black=0.11 (very precise)} 0-1

[Event "2nd Bieszczady Chess-ch A 2022"]
[Site "Bystre"]
[Date "2022.07.18"]
[Round "1.2"]
[White "Marszalek, Maciej"]
[Black "Hnatyshyn, Anastasiya"]
[Result "1-0"]
[ECO "A06"]
[WhiteElo "2268"]
[BlackElo "1931"]
[Annotator "TA"]
[PlyCount "119"]
[EventDate "2022.07.17"]
[EventCountry "POL"]
[SourceTitle "playchess.com"]
[Source "ChessBase"]
[SourceQuality "1"]
[TimeControl "5400+30"]

{[%evp 16,119,44,40,52,41,62,51,61,46,81,83,76,60,70,63,64,63,68,56,66,64,68,51,62,58,52,48,69,66,70,64,97,87,132,130,131,127,135,128,132,103,127,126,127,129,131,117,175,174,302,307,380,356,494,483,445,281,285,286,286,222,286,281,268,271,393,391,558,535,575,579,574,574,567,571,549,552,626,610,810,682,724,715,624,579,1173,1158,1197,1177,1080,644,1251,1098,1130,1043,29981,29970,29970,735,2043,702,1058,1058,826,797]} 1. Nf3 {[%emt 0:00:30]} d5 {[%emt 0:00:05]} 2. c4 {[%emt 0:00:50]} c6 {[%emt 0:00:25]} 3. g3 {[%emt 0:02:19]} Nf6 {[%emt 0:00:09]} 4. Bg2 {[%emt 0:00:05]} g6 {[%emt 0:00:06]} 5. b3 {[%emt 0:02:20]} Bg7 {[%emt 0:01:04]} 6. Bb2 {[%emt 0:00:42]} O-O {[%emt 0:01:04]} 7. O-O {[%emt 0:00:06]} Bf5 {[%emt 0:01:59]} 8. d3 {[%emt 0:00:19][%cal Bd2d3,Bd3d4][%mdl 32]} Re8 {[%emt 0:03:49] 8...a5 is the modern continuation.} 9. Nbd2 {[%emt 0:01:41]} Na6 {[%emt 0:10:22] A11: English Opening: 1...c6.} 10. Rc1 {[%emt 0:03:05]} Rc8 {[%emt 0:00:48] [#]} 11. a3 $146 {[%emt 0:00:35]} ({Predecessor:} 11. Qc2 Bg4 12. h3 Bxf3 13. Nxf3 Nh5 14. Bxg7 Kxg7 15. Qc3+ Kg8 16. e3 e6 17. Ne5 {1-0 (42) Bernhoeft,E (2096)-Patzer,J Gladenbach 1999}) 11... Qd6 {[%emt 0:06:58] White is slightly better.} 12. d4 {[%emt 0:05:31]} Be4 {[%emt 0:03:33]} 13. Nxe4 {[%emt 0:00:42]} Nxe4 {[%emt 0:00:06]} 14. Qd3 {[%emt 0:01:27]} Red8 {[%emt 0:07:38]} 15. Rfd1 {[%emt 0:01:38]} e6 {[%emt 0:00:42]} 16. e3 {[%emt 0:01:43]} Qe7 {[%emt 0:01:12]} 17. Qe2 {[%emt 0:00:32]} Nc7 {[%emt 0:01:36]} 18. Ne5 {[%emt 0:01:29]} Nd6 {[%emt 0:08:52]} 19. Bc3 {[%emt 0:05:12]} Na6 {[%emt 0:02:25]} 20. Ba5 {[%emt 0:04:20]} Re8 {[%emt 0:02:36]} 21. Be1 {[%emt 0:04:09]} Red8 {[%emt 0:08:43]} 22. cxd5 {[%emt 0:01:29]} cxd5 {[%emt 0:00:13] [#]} 23. Nc6 $1 {[%emt 0:00:18] White is more active.} bxc6 {[%emt 0:03:02]} (23... Rxc6 24. Rxc6) 24. Qxa6 {[%emt 0:01:59]} Qb7 {[%emt 0:00:07]} 25. Qxb7 {[%emt 0:05:20]} Nxb7 {[%emt 0:00:02]} 26. Bf1 {[%emt 0:02:47]} Rc7 {[%emt 0:02:03]} 27. Ba6 {[%emt 0:02:29]} Rb8 {[%emt 0:03:03]} 28. Rc2 {[%emt 0:02:17]} ({Don't play} 28. Bb4 Bf8 $14) 28... Bf8 {[%emt 0:01:15]} 29. b4 {[%emt 0:03:13][%cal Bb3b4,Bb4b5][%mdl 32]} Nd6 {[%emt 0:05:04]} 30. Rdc1 {[%emt 0:00:39]} Rb6 {[%emt 0:00:16]} 31. Bf1 {[%emt 0:00:09]} Rc8 {[%emt 0:00:27]} (31... Ne8 $16 32. b5 Bxa3) 32. a4 $18 {[%emt 0:04:16]} Ne4 {[%emt 0:04:28]} (32... Ra8 $142 33. a5 (33. Rxc6 Nc4 $18) 33... Rbb8 34. Rxc6 Kg7) 33. b5 {[%emt 0:04:08]} c5 {[%emt 0:00:48]} 34. f3 {[%emt 0:00:13][%cal Bf2f3,Bf3e4][%mdl 32]} Bh6 {[%emt 0:03:18]} 35. fxe4 {[%emt 0:00:36]} Bxe3+ {[%emt 0:00:05]} 36. Kg2 {[%emt 0:02:59]} Bxc1 {[%emt 0:00:08]} 37. Rxc1 {[%emt 0:00:01]} c4 {[%emt 0:00:19]} 38. exd5 {[%emt 0:00:36]} exd5 {[%emt 0:00:03]} 39. Bb4 {[%emt 0:00:30]} Re6 {[%emt 0:03:49]} 40. Bc5 {[%emt 0:00:00]} a6 {[%emt 0:00:00]} (40... Rc7 $142 41. Kf2 Rf6+ 42. Kg1 Re6) 41. b6 {[%emt 0:00:00]} Re3 {[%emt 0:00:00]} (41... a5 {was called for.} 42. Kf2 Rf6+ 43. Kg1 Rb8) 42. Rb1 {[%emt 0:00:00]} Rb8 {[%emt 0:00:00]} 43. Kf2 {[%emt 0:00:00]} Rc3 {[%emt 0:00:00]} 44. Bg2 {[%emt 0:00:00]} Rc2+ {[%emt 0:00:00]} 45. Kf1 {[%emt 0:00:00]} c3 {[%emt 0:00:00]} 46. Bxd5 {[%emt 0:00:00]} Rd2 {[%emt 0:00:00] [#] White must now prevent ...c2.} 47. Rc1 {[%emt 0:00:00]} c2 {[%emt 0:00:00] aiming for ...Rd1+.} 48. Bb3 {[%emt 0:00:00]} Rxh2 {[%emt 0:00:00]} 49. Rxc2 {[%emt 0:00:00]} Rh1+ {[%emt 0:00:00]} 50. Kg2 {[%emt 0:00:00]} Ra1 {[%emt 0:00:00]} 51. Rf2 {[%emt 0:00:00]} Rb1 {[%emt 0:00:00]} 52. Bxf7+ {[%emt 0:00:00]} Kg7 {[%emt 0:00:00]} 53. Bd5 {[%emt 0:00:00]} Rd8 {[%emt 0:00:22]} 54. Bc6 {[%emt 0:00:00] Strongly threatening b7.} Rb8 {[%emt 0:01:22]} 55. b7 {[%emt 0:00:00] Hoping for Bd6.} R8xb7 {[%emt 0:00:38]} 56. Bxb7 {[%emt 0:00:00]} Rxb7 {[%emt 0:00:08]} 57. a5 {[%emt 0:00:00]} (57. Bf8+ $142 Kg8 58. Bc5 Kg7 59. d5 Rb8 60. d6 Rd8 61. Kh3 Kg8 62. Rf6) 57... Rb5 {[%emt 0:00:21] White is clearly winning.} 58. Bb6 {[%emt 0:00:00]} Rd5 {[%emt 0:00:25]} 59. Rc2 {[%emt 0:00:39]} Rb5 {[%emt 0:00:26]} 60. Kf3 {[%emt 0:00:41] Weighted Error Value: White=0.21 (precise) /Black=0.43} 1-0

[Event "2nd Bieszczady Chess-ch A 2022"]
[Site "Bystre"]
[Date "2022.07.18"]
[Round "1.3"]
[White "Wilk, Tomasz"]
[Black "Tymrakiewicz, Rafal"]
[Result "1-0"]
[ECO "B03"]
[WhiteElo "1900"]
[BlackElo "2205"]
[Annotator "TA"]
[PlyCount "121"]
[EventDate "2022.07.17"]
[EventCountry "POL"]
[SourceTitle "playchess.com"]
[Source "ChessBase"]
[SourceQuality "1"]
[TimeControl "5400+30"]

{[%evp 17,121,29,26,20,20,6,17,-16,5,13,6,18,2,15,0,0,0,-25,-14,-64,-58,-68,-47,-77,0,0,19,24,19,20,22,27,21,13,20,0,0,0,54,-85,122,120,418,159,110,25,22,0,313,-241,-218,-232,0,0,48,57,708,702,700,687,693,670,654,652,1152,1138,1164,1101,1779,1748,29985,1522,29986,29987,29994,29989,29986,0,29994,29995,29995,29985,29985,29986,29985,29980,29980,6223,29983,29984,29990,29986,29984,29985,29995,29987,29996,29988,29989,29989,29992,29993,29994,29995,29995,29996]} 1. e4 {[%emt 0:00:03][%cal Be2e4,Be4e5][%mdl 32]} Nf6 {[%emt 0:04:45]} 2. e5 {[%emt 0:00:15]} Nd5 {[%emt 0:00:02]} 3. d4 {[%emt 0:01:15]} d6 {[%emt 0:00:10]} 4. c4 {[%emt 0:00:07]} Nb6 {[%emt 0:00:02]} 5. exd6 {[%emt 0:00:07]} cxd6 {[%emt 0:00:03]} 6. Nc3 {[%emt 0:01:08]} g6 {[%emt 0:00:14]} 7. Be3 {[%emt 0:03:37]} Bg7 {[%emt 0:00:11]} 8. Rc1 {[%emt 0:01:15]} O-O {[%emt 0:01:15]} 9. Nf3 {[%emt 0:01:54]} Bg4 {[%emt 0:05:11]} 10. Be2 {[%emt 0:02:35] B04: Alekhine's Defence: 4 Nf3.} e6 {[%emt 0:20:02]} 11. O-O {[%emt 0:07:04] [#]} d5 $146 {[%emt 0:01:50]} ({Predecessor:} 11... Nc6 12. b3 d5 13. c5 Nc8 14. Qd2 N8e7 15. Ne1 Bxe2 16. Nxe2 Nf5 17. Nc2 b6 18. Rfd1 bxc5 19. dxc5 Nxe3 20. Qxe3 Qa5 21. Ncd4 Nxd4 22. Nxd4 Qxa2 {1-0 (40) Zyla,L (1852)-Esser,M (2040) Nordrheinwestfalen 2019}) 12. c5 {[%emt 0:02:23] The position is equal.} Nc8 {[%emt 0:02:44][%cal Bb6c8,Bc8e7,Be7f5][%mdl 32]} (12... Bxf3 $5 13. Bxf3 Nc4 $11) 13. Ne5 {[%emt 0:05:55]} Bxe2 {[%emt 0:01:40]} 14. Qxe2 {[%emt 0:01:51]} Nc6 {[%emt 0:03:10]} 15. Nxc6 {[%emt 0:04:06]} bxc6 {[%emt 0:00:07]} 16. b4 {[%emt 0:00:03]} Ne7 {[%emt 0:02:42]} 17. a4 {[%emt 0:02:25]} Nf5 {[%emt 0:04:17]} 18. Rfd1 {[%emt 0:03:56]} (18. Qd2 $11) 18... e5 $1 $15 {[%emt 0:02:49]} 19. dxe5 {[%emt 0:02:33]} Bxe5 {[%emt 0:00:33]} 20. b5 {[%emt 0:03:25]} d4 {[%emt 0:15:42]} (20... Qh4 21. g3 Qf6 22. Qd2 $14) (20... Re8 $1 $17 {Strongly threatening ...d4.} 21. Qf3 Qh4) 21. Bd2 $1 $11 {[%emt 0:09:23]} Qc7 {[%emt 0:05:20]} (21... dxc3 22. Bxc3 Bd4 23. Bxd4 $16) 22. Ne4 {[%emt 0:02:06]} Bxh2+ {[%emt 0:01:04]} 23. Kh1 {[%emt 0:01:40][%cal Ob5b6] Black must now prevent b6!} Be5 {[%emt 0:02:07]} 24. Nd6 {[%emt 0:01:25]} Bxd6 {[%emt 0:05:26]} ({Weaker is} 24... Nxd6 25. Qxe5 Ne8 26. Qxd4 $16) 25. cxd6 {[%emt 0:00:10]} Qxd6 {[%emt 0:00:27] Threatens to win with ...c5.} 26. Rxc6 {[%emt 0:00:05]} Qd5 {[%emt 0:01:18]} 27. Qc4 {[%emt 0:00:49] Inhibits Qb3.} Qe4 {[%emt 0:07:37]} (27... Ng3+ $11 28. Kh2 Qe5 $1) 28. Bb4 {[%emt 0:02:21]} (28. Re1 $1 $14 {stays ahead.} Qh4+ 29. Kg1) 28... Rfd8 $2 {[%emt 0:05:14]} (28... Nh4 $1 $17 {[%csl Gh4][%cal Re4g2] and life is bright.} 29. Qf1 Rfe8) 29. Rc7 $16 {[%emt 0:00:34] Really sharp!} Qh4+ {[%emt 0:06:53]} 30. Kg1 {[%emt 0:01:34]} Qf6 {[%emt 0:00:02]} 31. Bc5 {[%emt 0:00:19] White is much more active.} (31. a5 $16) 31... d3 $1 $11 {[%emt 0:00:48]} 32. Rxa7 {[%emt 0:00:25]} ({Not} 32. Rxd3 $2 Qa1+ 33. Kh2 Qe5+ 34. g3 Qxc7 $19) 32... Rac8 {[%emt 0:00:38][%mdl 8192]} (32... Rxa7 $11 33. Bxa7 Qe7) 33. Qb4 $4 {[%emt 0:01:31][%mdl 8192] [#]} (33. b6 $18 {is the narrow road to win.}) 33... Qe5 $1 $19 {[%emt 0:02:02]} 34. Qb3 {[%emt 0:00:49] [#]} Rd5 $2 {[%emt 0:00:19]} ({Black should try} 34... Qe8 $1 $19 35. Bb6 (35. Bb4 $2 Nd4 $19) 35... Rd6) 35. b6 $1 $36 {[%emt 0:01:02][%mdl 2048] White is more active.} d2 {[%emt 0:00:31]} (35... Rcxc5 $2 36. b7 Rb5 37. axb5 $18) (35... Kg7 $1 $11 {feels stronger.} 36. f4 Qe4) 36. b7 $14 {[%emt 0:00:24]} Re8 {[%emt 0:00:42][%mdl 8192] [#] White leaves nothing to chance now.} (36... Rb8 $14 37. Bb4 Nd4) 37. Ra8 $1 $18 {[%emt 0:00:25]} Rdd8 {[%emt 0:00:28]} 38. Rxd8 {[%emt 0:00:29]} Rxd8 {[%emt 0:00:14]} 39. Ba7 {[%emt 0:01:38]} Qe1+ {[%emt 0:00:27]} 40. Kh2 {[%emt 0:00:00]} Qe5+ {[%emt 0:00:00]} 41. g3 {[%emt 0:00:00]} Nd4 {[%emt 0:00:00]} 42. b8=Q {[%emt 0:00:00]} Qh5+ {[%emt 0:00:00]} 43. Kg2 {[%emt 0:00:00]} Nxb3 {[%emt 0:00:00]} 44. Qxd8+ {[%emt 0:00:00]} Kg7 {[%emt 0:00:00]} 45. Bd4+ {[%emt 0:00:00]} Kh6 {[%emt 0:00:00]} 46. Be3+ {[%emt 0:00:00]} Kg7 {[%emt 0:00:00]} 47. Bd4+ {[%emt 0:00:00]} Kh6 {[%emt 0:00:00]} 48. Qf8+ {[%emt 0:00:00]} Kg5 {[%emt 0:00:00]} 49. Be3+ {[%emt 0:00:00]} Kf6 {[%emt 0:00:01]} 50. Qd6+ {[%emt 0:00:00]} Kg7 {[%emt 0:00:21]} 51. Rxd2 {[%emt 0:00:00]} Nxd2 {[%emt 0:01:23]} 52. Qxd2 {[%emt 0:00:00]} (52. Bd4+ $142 Kh6 53. Qf8+ Kg5 54. Qxf7 Qf3+ 55. Qxf3 Nxf3 56. Kxf3 Kf5 57. a5) 52... g5 {[%emt 0:00:42]} 53. Qd4+ {[%emt 0:00:00] White mates.} Kg6 {[%emt 0:00:16]} 54. Qe4+ {[%emt 0:00:00]} Kh6 {[%emt 0:00:54]} 55. Qf5 {[%emt 0:00:00]} f6 {[%emt 0:00:34]} 56. Qxf6+ {[%emt 0:00:00]} Qg6 {[%emt 0:00:01]} 57. Qxg6+ {[%emt 0:00:00]} hxg6 {[%emt 0:00:04]} 58. a5 {[%emt 0:00:00]} Kh5 {[%emt 0:00:03]} 59. a6 {[%emt 0:00:00]} g4 {[%emt 0:00:04]} 60. a7 {[%emt 0:00:00]} g5 {[%emt 0:00:19]} 61. a8=Q {[%emt 0:00:00] Weighted Error Value: White=0.45/Black=0.58} 1-0

[Event "2nd Bieszczady Chess-ch A 2022"]
[Site "Bystre"]
[Date "2022.07.18"]
[Round "1.4"]
[White "Dzwierzynski, Bartosz"]
[Black "Maksimenko, Andrei Jr"]
[Result "1-0"]
[ECO "A57"]
[WhiteElo "2129"]
[BlackElo "1897"]
[Annotator "TA"]
[PlyCount "99"]
[EventDate "2022.07.17"]
[EventCountry "POL"]
[SourceTitle "playchess.com"]
[Source "ChessBase"]
[SourceQuality "1"]
[TimeControl "5400+30"]

{[%evp 9,99,28,38,14,39,40,70,70,137,103,125,106,120,119,122,107,94,103,125,92,115,57,99,84,76,77,89,71,73,74,125,105,262,263,256,211,257,208,322,314,322,315,419,243,798,793,807,228,223,213,202,219,233,183,195,196,213,229,296,295,287,277,355,233,227,231,222,192,196,187,231,187,277,283,314,313,314,314,314,314,779,762,5489,713,29987,682,29983,29984,29986,1478,1194,1171]} 1. d4 {[%emt 0:00:03]} Nf6 {[%emt 0:03:03]} 2. c4 {[%emt 0:00:05]} c5 {[%emt 0:00:25]} 3. d5 {[%emt 0:00:06]} b5 {[%emt 0:00:03]} 4. Qc2 {[%emt 0:00:17]} b4 {[%emt 0:02:30]} 5. e4 {[%emt 0:01:45]} d6 {[%emt 0:00:04]} 6. f4 {[%emt 0:01:31] A57: Benko/Volga Gambit.} Qc7 {[%emt 0:15:12]} 7. Nf3 {[%emt 0:00:45]} Bg4 {[%emt 0:07:19]} 8. Nbd2 {[%emt 0:02:08] [#] White is slightly better.} e6 $146 {[%emt 0:20:06]} ({Better is} 8... g6 $14) ({Predecessor:} 8... e5 9. dxe6 Bxe6 10. Bd3 Nc6 11. O-O Be7 12. b3 Ng4 13. Re1 Bf6 14. Bb2 Bxb2 15. Qxb2 {1-0 (32) Bulajic,R (2270)-Djokic,N (2335) Vrnjacka Banja 1996}) 9. Be2 {[%emt 0:01:54]} Be7 {[%emt 0:06:07]} 10. O-O {[%emt 0:01:12]} O-O {[%emt 0:02:01]} 11. h3 {[%emt 0:00:38]} Bxf3 {[%emt 0:01:33]} 12. Bxf3 {[%emt 0:00:08][%cal Oe4e5] Hoping for e5!} Ne8 {[%emt 0:07:53]} 13. e5 {[%emt 0:05:50] Strongly threatening dxe6.} exd5 {[%emt 0:05:19]} 14. cxd5 {[%emt 0:02:14]} Nd7 {[%emt 0:03:49]} 15. Nc4 {[%emt 0:00:20]} (15. Re1 $16) 15... Nb6 {[%emt 0:02:28]} 16. b3 $36 {[%emt 0:13:24][%mdl 2048] White is really pushing. White is much more active.} Rd8 {[%emt 0:01:26]} 17. Nxb6 {[%emt 0:14:46]} (17. Bb2 {with more complications.} dxe5 18. Bxe5 Bd6 19. Nxd6 Nxd6 20. Rac1) 17... Qxb6 {[%emt 0:01:43]} 18. Kh1 {[%emt 0:01:45]} Nc7 {[%emt 0:00:11]} 19. Rd1 {[%emt 0:01:51]} Rfe8 {[%emt 0:02:32]} (19... Nb5 $142) 20. Be4 {[%emt 0:01:26]} h6 $2 {[%emt 0:04:19] Loses the game.} (20... g6 $16) 21. Bb2 $1 $18 {[%emt 0:00:26][%cal Oe5e6] And now e6! would win.} Bf8 {[%emt 0:02:56]} 22. Rd3 {[%emt 0:03:22]} Nb5 {[%emt 0:05:20]} 23. Qe2 {[%emt 0:05:50][%cal Oe5e6]} Nc3 {[%emt 0:01:37]} (23... dxe5 {might work better.} 24. fxe5 Nd6) 24. Bxc3 {[%emt 0:00:58]} bxc3 {[%emt 0:00:01]} 25. e6 {[%emt 0:00:25] aiming for Qh5.} (25. Rxc3 dxe5 26. fxe5 g6 $16) 25... fxe6 {[%emt 0:01:45]} 26. dxe6 {[%emt 0:00:25]} (26. Qh5 $142 c4 27. Qg6 $1 cxd3 28. dxe6 Rxe6 29. Qxe6+ Kh8 30. Qf5) 26... Qb4 $2 {[%emt 0:01:57]} (26... c4 27. bxc4 (27. Rxc3 d5 $16) 27... Qb2) 27. a3 {[%emt 0:07:30]} Qb5 {[%emt 0:00:57]} 28. Bd5 $2 {[%emt 0:02:18]} (28. Qg4 {White threatens Qg6 and mate.} Qxb3 29. Qf5 Qxe6 30. Bd5 Qxd5 31. Qxd5+ Kh8 32. Rxc3) 28... Be7 {[%emt 0:00:38]} 29. Qf3 {[%emt 0:00:48]} Rf8 {[%emt 0:00:05]} 30. Rxc3 {[%emt 0:01:45]} Rf6 {[%emt 0:00:57]} 31. Qg4 {[%emt 0:02:13] Rg3 is the strong threat.} Qe8 {[%emt 0:00:27]} 32. Rf1 {[%emt 0:01:08]} Qf8 {[%emt 0:00:39]} 33. f5 {[%emt 0:01:04]} Rb8 {[%emt 0:00:39]} 34. Rcf3 {[%emt 0:00:30][%cal Bc3f3,Bf3f4,Bf4g4,Bg4g6][%mdl 32]} Qd8 {[%emt 0:00:05]} 35. Qa4 {[%emt 0:00:42]} a5 {[%emt 0:01:08]} 36. Rf4 {[%emt 0:02:25]} Kh8 {[%emt 0:00:20]} 37. R1f3 {[%emt 0:00:06]} Rf8 {[%emt 0:00:48]} 38. Rg4 {[%emt 0:04:19]} Bf6 {[%emt 0:00:23]} 39. Rg6 {[%emt 0:00:14]} Re8 {[%emt 0:00:24]} 40. Rfg3 {[%emt 0:00:00]} Qe7 {[%emt 0:00:00]} (40... Rf8 {was necessary.} 41. Qe4 Qe7) 41. Qxa5 {[%emt 0:00:00]} Be5 {[%emt 0:00:00]} 42. Rf3 {[%emt 0:00:00][%cal Of5f6] Black must now prevent f6!} Rf8 {[%emt 0:00:00] Against f6} 43. Qa4 {[%emt 0:00:00]} Rbc8 {[%emt 0:00:00]} 44. Qg4 {[%emt 0:02:03]} Rc7 $2 {[%emt 0:00:00]} (44... Rb8 45. Qe4 Rb6) 45. Qh5 {[%emt 0:00:40][%cal Of5f6] Threatens to win with f6!} Ra7 {[%emt 0:00:56]} 46. a4 {[%emt 0:00:04]} (46. f6 $142 Rxf6 47. Rgxf6 Bxf6 48. Qg6) 46... Ra5 {[%emt 0:01:44]} 47. g4 {[%emt 0:01:48]} (47. f6 $142 Rxf6 48. Rgxf6 Bxf6 49. Qg6 Qd8 50. Be4 Kg8 51. Qf7+ Kh8 52. Rxf6 $1 {[%mdl 512]}) 47... Bf6 {[%emt 0:00:42]} 48. h4 {[%emt 0:00:13]} Bxh4 {[%emt 0:00:57] [#]} 49. Rh3 {[%emt 0:00:12]} (49. Rxh6+ $142 $1 {[%mdl 512]} gxh6 50. Qxh6+ Kg8 51. Rh3 c4 52. Rxh4 Qxh4+ 53. Qxh4 Rxd5 54. Qg5+ Kh7 55. e7) 49... Bg5 {[%emt 0:00:14]} 50. Qxg5 {[%emt 0:00:27] Weighted Error Value: White=0.47/Black=0.60} 1-0